[Event "Sunway Sitges Chess Festival"]
[Date "2024.12.22"]
[White "Singh, Siddharth"]
[Black "Degraeve, Remy"]
[WhiteElo "2107"]
[BlackElo "2400"]
[Round "10.34"]
[Result "0-1"]
[TimeControl "40/5400+30:1800+30"]

1. e4 {[%clk 1:30:57]} 1... e5 {[%clk 1:30:55]} 2. Nf3 {[%clk 1:31:21]} 2... Nc6
{[%clk 1:31:23]} 3. Bb5 {[%clk 1:31:43]} 3... a6 {[%clk 1:31:49]} 4. Ba4 {[%clk
1:32:08]} 4... Nf6 {[%clk 1:32:15]} 5. O-O {[%clk 1:32:32]} 5... d6 {[%clk
1:32:40]} 6. Bxc6+ {[%clk 1:32:57]} 6... bxc6 {[%clk 1:33:06]} 7. d4 {[%clk
1:33:21]} 7... exd4 {[%clk 1:33:32]} 8. Nxd4 {[%clk 1:33:46]} 8... c5 {[%clk
1:33:58]} 9. Nc6 {[%clk 1:34:10]} 9... Qd7 {[%clk 1:34:26]} 10. Na5 {[%clk
1:34:32]} 10... Qa4 {[%clk 1:34:51]} 11. Bd2 {[%clk 1:34:57]} 11... Be7 {[%clk
1:35:18]} 12. Re1 {[%clk 1:35:22]} 12... Bg4 {[%clk 1:35:45]} 13. f3 {[%clk
1:35:44]} 13... Be6 {[%clk 1:36:09]} 14. Kh1 {[%clk 1:32:55]} 14... O-O {[%clk
1:31:40]} 15. Nc3 {[%clk 1:32:00]} 15... Qd7 {[%clk 1:29:32]} 16. Qe2 {[%clk
1:30:06]} 16... c6 {[%clk 1:26:05]} 17. Rad1 {[%clk 1:22:32]} 17... Qc7 {[%clk
1:24:04]} 18. Nb3 {[%clk 1:20:48]} 18... a5 {[%clk 1:20:25]} 19. Na4 {[%clk
1:12:50]} 19... Nd7 {[%clk 1:11:41]} 20. Bf4 {[%clk 1:10:05]} 20... Qb7 {[%clk
1:08:45]} 21. Bxd6 {[%clk 1:05:26]} 21... Bxd6 {[%clk 1:08:18]} 22. Rxd6 {[%clk
1:05:49]} 22... Qb4 {[%clk 1:08:34]} 23. Rxd7 {[%clk 1:06:03]} 23... Bxd7 {[%clk
1:08:58]} 24. Nbxc5 {[%clk 1:06:28]} 24... Be6 {[%clk 1:02:16]} 25. b3 {[%clk
0:49:08]} 25... Rad8 {[%clk 1:01:27]} 26. c3 {[%clk 0:41:34]} 26... Qb5 {[%clk
1:00:32]} 27. Qc2 {[%clk 0:40:52]} 27... Qb8 {[%clk 0:58:59]} 28. Qc1 {[%clk
0:36:57]} 28... Bc8 {[%clk 0:54:23]} 29. e5 {[%clk 0:30:59]} 29... Rfe8 {[%clk
0:52:27]} 30. f4 {[%clk 0:30:29]} 30... Bf5 {[%clk 0:52:39]} 31. h3 {[%clk
0:28:43]} 31... Qa7 {[%clk 0:49:13]} 32. Qe3 {[%clk 0:28:01]} 32... Qe7 {[%clk
0:47:05]} 33. Qf2 {[%clk 0:26:21]} 33... h5 {[%clk 0:46:20]} 34. Kh2 {[%clk
0:26:13]} 34... f6 {[%clk 0:36:30]} 35. c4 {[%clk 0:18:15]} 35... fxe5 {[%clk
0:34:02]} 36. fxe5 {[%clk 0:18:26]} 36... Qg5 {[%clk 0:30:37]} 37. Re2 {[%clk
0:12:10]} 37... Re7 {[%clk 0:13:58]} 38. Qf3 {[%clk 0:03:22]} 38... Rde8 {[%clk
0:11:47]} 39. Qxc6 {[%clk 0:00:37]} 39... h4 {[%clk 0:09:59]} 40. Qd5+ {[%clk
0:30:39]} 40... Kh8 {[%clk 0:33:39]} 41. e6 {[%clk 0:28:31]} 41... Qg3+ {[%clk
0:29:35]} 42. Kh1 {[%clk 0:28:20]} 42... Bg6 {[%clk 0:25:17]} 43. Nb6 {[%clk
0:25:25]} 43... Rf8 {[%clk 0:24:04]} 44. Kg1 {[%clk 0:23:32]} 44... Qf4 {[%clk
0:24:01]} 45. Qd2 {[%clk 0:20:10]} 45... Qc7 {[%clk 0:21:05]} 46. Ncd7 {[%clk
0:15:39]} 46... Rfe8 {[%clk 0:17:23]} 47. Qd5 {[%clk 0:12:30]} 47... Qf4 {[%clk
0:17:01]} 48. c5 {[%clk 0:10:01]} 48... Bf5 {[%clk 0:14:17]} 49. Ne5 {[%clk
0:07:12]} 49... Qc1+ {[%clk 0:13:43]} 50. Kh2 {[%clk 0:07:25]} 50... Qf4+ {[%clk
0:14:10]} 51. Kg1 {[%clk 0:07:46]} 51... Kh7 {[%clk 0:08:22]} 52. Nbc4 {[%clk
0:07:32]} 52... Qc1+ {[%clk 0:08:25]} 53. Kh2 {[%clk 0:07:55]} 53... Qf4+ {[%clk
0:08:53]} 54. Kg1 {[%clk 0:08:21]} 54... Bxe6 {[%clk 0:02:23]} 55. Qe4+ {[%clk
0:07:53]} 55... Qxe4 {[%clk 0:02:50]} 56. Rxe4 {[%clk 0:08:20]} 56... Bxc4
{[%clk 0:01:27]} 57. Rxh4+ {[%clk 0:08:49]} 57... Kg8 {[%clk 0:01:50]} 58. Nxc4
{[%clk 0:09:14]} 58... Re1+ {[%clk 0:02:02]} 59. Kh2 {[%clk 0:08:56]} 59... Rc8
{[%clk 0:02:25]} 60. Nxa5 {[%clk 0:08:06]} 60... Rxc5 {[%clk 0:02:50]} 61. Nc4
{[%clk 0:07:54]} 61... Rg5 {[%clk 0:03:00]} 62. Nd6 {[%clk 0:05:10]} 62... Re2
{[%clk 0:02:17]} 63. Rh8+ {[%clk 0:05:32]} 63... Kxh8 {[%clk 0:02:46]} 64. Nf7+
{[%clk 0:05:57]} 64... Kg8 {[%clk 0:03:15]} 65. Nxg5 {[%clk 0:06:21]} 65... Rxa2
{[%clk 0:03:41]} 66. Ne4 {[%clk 0:05:37]} 66... Rb2 {[%clk 0:04:03]} 67. Nc5
{[%clk 0:06:04]} 67... Kf7 {[%clk 0:04:18]} 68. Kg3 {[%clk 0:06:06]} 68... Kf6
{[%clk 0:04:23]} 69. Kf3 {[%clk 0:05:54]} 69... Kf5 {[%clk 0:04:17]} 70. g4+
{[%clk 0:05:06]} 70... Kg6 {[%clk 0:04:05]} 71. Kf4 {[%clk 0:04:05]} 71... Rh2
{[%clk 0:03:55]} 72. Kg3 {[%clk 0:04:12]} 72... Rd2 {[%clk 0:04:14]} 73. Kf3
{[%clk 0:04:06]} 73... Rd5 {[%clk 0:04:06]} 74. b4 {[%clk 0:04:20]} 74... Rd4
{[%clk 0:04:32]} 75. h4 {[%clk 0:04:36]} 75... Rxb4 {[%clk 0:04:54]} 76. Ne4
{[%clk 0:04:57]} 76... Rb1 {[%clk 0:05:04]} 77. Ng3 {[%clk 0:04:27]} 77... Kf6
{[%clk 0:04:51]} 78. Nh5+ {[%clk 0:04:47]} 78... Kf7 {[%clk 0:05:17]} 79. Ng3
{[%clk 0:04:44]} 79... Rb4 {[%clk 0:04:15]} 80. Nh5 {[%clk 0:03:54]} 80... Rb2
{[%clk 0:03:41]} 81. Kf4 {[%clk 0:03:26]} 81... Kg6 {[%clk 0:02:59]} 82. Kf3
{[%clk 0:03:35]} 82... Rb4 {[%clk 0:03:12]} 83. Nf4+ {[%clk 0:03:56]} 83... Kf7
{[%clk 0:03:36]} 84. Nh5 {[%clk 0:03:53]} 84... Ra4 {[%clk 0:04:00]} 85. Nf4
{[%clk 0:03:59]} 85... Ra3+ {[%clk 0:03:54]} 86. Ke4 {[%clk 0:04:17]} 86... Ra5
{[%clk 0:02:43]} 87. Ke3 {[%clk 0:04:28]} 87... Ra1 {[%clk 0:03:07]} 88. Kf3
{[%clk 0:04:21]} 88... Rf1+ {[%clk 0:03:23]} 89. Kg3 {[%clk 0:04:33]} 89... Rg1+
{[%clk 0:03:04]} 90. Kf3 {[%clk 0:04:53]} 90... Re1 {[%clk 0:03:02]} 91. Kf2
{[%clk 0:05:10]} 91... Re7 {[%clk 0:02:49]} 92. Kf3 {[%clk 0:05:36]} 92... Ra7
{[%clk 0:03:15]} 93. Ke4 {[%clk 0:05:33]} 93... Ra3 {[%clk 0:03:14]} 94. Nd3
{[%clk 0:05:40]} 94... Kf6 {[%clk 0:03:27]} 95. Ke3 {[%clk 0:05:42]} 95... Ke6
{[%clk 0:03:01]} 96. Ke4 {[%clk 0:05:59]} 96... Ra4+ {[%clk 0:02:43]} 97. Kf3
{[%clk 0:06:25]} 97... Kd6 {[%clk 0:03:02]} 98. Nf4 {[%clk 0:06:23]} 98... Ke5
{[%clk 0:03:10]} 99. Ng6+ {[%clk 0:06:48]} 99... Kf6 {[%clk 0:03:38]} 100. Nf4
{[%clk 0:07:08]} 100... Ra3+ {[%clk 0:03:51]} 101. Ke4 {[%clk 0:07:32]} 101...
Kf7 {[%clk 0:03:05]} 102. Nd3 {[%clk 0:07:49]} 102... Ra1 {[%clk 0:03:15]} 103.
Kf4 {[%clk 0:06:56]} 103... Kf6 {[%clk 0:03:10]} 104. Kf3 {[%clk 0:06:42]}
104... Rh1 {[%clk 0:03:19]} 105. Kg3 {[%clk 0:07:01]} 105... Ke6 {[%clk
0:03:27]} 106. Nf2 {[%clk 0:07:13]} 106... Rf1 {[%clk 0:03:53]} 107. Kg2 {[%clk
0:07:30]} 107... Ra1 {[%clk 0:04:16]} 108. Kf3 {[%clk 0:07:34]} 108... Ke5
{[%clk 0:04:34]} 109. Nd3+ {[%clk 0:06:22]} 109... Kd4 {[%clk 0:04:58]} 110. Nf2
{[%clk 0:06:50]} 110... Ra2 {[%clk 0:03:47]} 111. Ne4 {[%clk 0:06:01]} 111...
Ra8 {[%clk 0:03:38]} 112. Ng3 {[%clk 0:05:52]} 112... Ke5 {[%clk 0:04:04]} 113.
h5 {[%clk 0:04:26]} 113... Ra3+ {[%clk 0:04:14]} 114. Kf2 {[%clk 0:04:52]}
114... Kf4 {[%clk 0:04:05]} 115. Nf5 {[%clk 0:05:16]} 115... Ra7 {[%clk
0:03:34]} 116. h6 {[%clk 0:03:46]} 116... g5 {[%clk 0:03:32]} 117. Ne3 {[%clk
0:01:33]} 117... Ra2+ {[%clk 0:03:58]} 118. Kg1 {[%clk 0:01:52]} 118... Kxe3
{[%clk 0:04:22]} 119. Kf1 {[%clk 0:02:20]} 119... Rh2 {[%clk 0:04:44]} 120. Ke1
{[%clk 0:02:48]} 120... Rh1# {[%clk 0:05:09]} 0-1

[Variant "Standard"]
[Site "Europe Echecs"]

[Event "Sunway Sitges Chess Festival"]
[Date "2024.12.22"]
[White "Shah Jeet"]
[Black "Shamatava, Nikolozi"]
[WhiteElo "2052"]
[BlackElo "2334"]
[Round "10.35"]
[Result "0-1"]
[TimeControl "40/5400+30:1800+30"]

1. e4 {[%clk 1:30:30]} 1... e5 {[%clk 1:28:45]} 2. Nf3 {[%clk 1:30:49]} 2... Nc6
{[%clk 1:29:09]} 3. Bc4 {[%clk 1:31:14]} 3... Bc5 {[%clk 1:29:33]} 4. c3 {[%clk
1:31:39]} 4... Nf6 {[%clk 1:29:59]} 5. d3 {[%clk 1:32:05]} 5... O-O {[%clk
1:30:22]} 6. Nbd2 {[%clk 1:31:20]} 6... d6 {[%clk 1:25:38]} 7. Bb3 {[%clk
1:30:41]} 7... a6 {[%clk 1:23:32]} 8. h3 {[%clk 1:29:47]} 8... Be6 {[%clk
1:20:59]} 9. Nf1 {[%clk 1:28:28]} 9... h6 {[%clk 1:18:10]} 10. Ng3 {[%clk
1:26:19]} 10... d5 {[%clk 1:14:54]} 11. Qe2 {[%clk 1:23:37]} 11... Re8 {[%clk
1:12:51]} 12. O-O {[%clk 1:21:11]} 12... Ba7 {[%clk 1:11:11]} 13. Be3 {[%clk
1:11:57]} 13... d4 {[%clk 1:06:28]} 14. Bd2 {[%clk 1:08:17]} 14... Qd7 {[%clk
1:03:09]} 15. Bxe6 {[%clk 1:06:15]} 15... Rxe6 {[%clk 1:02:43]} 16. c4 {[%clk
1:06:10]} 16... Bc5 {[%clk 1:02:54]} 17. Nf5 {[%clk 1:01:49]} 17... Bf8 {[%clk
1:01:27]} 18. g4 {[%clk 0:51:12]} 18... Nh7 {[%clk 1:00:52]} 19. Kh2 {[%clk
0:47:47]} 19... Qd8 {[%clk 0:57:54]} 20. h4 {[%clk 0:42:10]} 20... b5 {[%clk
0:51:35]} 21. Rac1 {[%clk 0:39:22]} 21... Rb8 {[%clk 0:54:49]} 22. b3 {[%clk
0:38:11]} 22... b4 {[%clk 0:53:26]} 23. Rg1 {[%clk 0:32:22]} 23... a5 {[%clk
0:53:39]} 24. Rg3 {[%clk 0:28:43]} 24... Ne7 {[%clk 0:50:26]} 25. Rcg1 {[%clk
0:25:06]} 25... Rbb6 {[%clk 0:50:42]} 26. Ne1 {[%clk 0:16:05]} 26... Nxf5 {[%clk
0:33:25]} 27. exf5 {[%clk 0:12:01]} 27... Re8 {[%clk 0:33:07]} 28. g5 {[%clk
0:12:16]} 28... hxg5 {[%clk 0:32:09]} 29. hxg5 {[%clk 0:11:48]} 29... Bd6 {[%clk
0:24:29]} 30. Qe4 {[%clk 0:11:24]} 30... Qa8 {[%clk 0:23:29]} 31. Rg4 {[%clk
0:06:43]} 31... Qxe4 {[%clk 0:23:03]} 32. dxe4 {[%clk 0:05:49]} 32... Nf8 {[%clk
0:19:31]} 33. R1g3 {[%clk 0:05:34]} 33... Nd7 {[%clk 0:19:20]} 34. Rh3 {[%clk
0:04:19]} 34... Kf8 {[%clk 0:19:28]} 35. Rh7 {[%clk 0:02:15]} 35... Ke7 {[%clk
0:17:03]} 36. Rxg7 {[%clk 0:01:38]} 36... Rh8+ {[%clk 0:17:32]} 37. Kg2 {[%clk
0:02:01]} 37... Kf8 {[%clk 0:15:48]} 38. f6 {[%clk 0:02:26]} 38... Ke8 {[%clk
0:15:50]} 39. Nf3 {[%clk 0:02:02]} 39... Bf8 {[%clk 0:11:50]} 40. Rh4 {[%clk
0:32:22]} 40... Rxh4 {[%clk 0:42:03]} 41. Nxh4 {[%clk 0:32:51]} 41... Nc5 {[%clk
0:42:24]} 42. Rg8 {[%clk 0:19:46]} 42... Nxe4 {[%clk 0:42:01]} 43. Bc1 {[%clk
0:18:27]} 43... d3 {[%clk 0:39:38]} 44. Nf3 {[%clk 0:16:17]} 44... Rd6 {[%clk
0:37:41]} 45. Bd2 {[%clk 0:16:04]} 45... Rd8 {[%clk 0:38:06]} 46. Kf1 {[%clk
0:05:36]} 46... Ra8 {[%clk 0:35:43]} 47. Ke1 {[%clk 0:05:05]} 47... a4 {[%clk
0:34:17]} 48. g6 {[%clk 0:03:39]} 48... fxg6 {[%clk 0:28:33]} 49. Bh6 {[%clk
0:02:18]} 49... Kd7 {[%clk 0:25:12]} 50. Nxe5+ {[%clk 0:00:55]} 50... Ke6 {[%clk
0:25:41]} 51. Rxf8 {[%clk 0:00:32]} 51... axb3 {[%clk 0:26:04]} 52. f7 {[%clk
0:00:39]} 52... Rxf8 {[%clk 0:24:51]} 53. axb3 {[%clk 0:01:00]} 53... d2+ {[%clk
0:22:28]} 54. Ke2 {[%clk 0:00:56]} 54... Rd8 {[%clk 0:21:35]} 55. Bxd2 {[%clk
0:01:18]} 55... Rxd2+ {[%clk 0:20:20]} 56. Ke3 {[%clk 0:01:29]} 56... Rxf2
{[%clk 0:20:44]} 57. Kxe4 {[%clk 0:01:16]} 57... g5 {[%clk 0:20:58]} 58. Ke3
{[%clk 0:00:32]} 58... Rxf7 {[%clk 0:20:58]} 59. Nc6 {[%clk 0:00:52]} 59... Kd6
{[%clk 0:21:01]} 60. Nxb4 {[%clk 0:01:18]} 60... g4 {[%clk 0:21:22]} 61. c5+
{[%clk 0:01:11]} 61... Kxc5 {[%clk 0:21:36]} 62. Nd3+ {[%clk 0:01:38]} 62... Kb5
{[%clk 0:21:59]} 63. Nc1 {[%clk 0:01:22]} 63... g3 {[%clk 0:22:23]} 64. Ne2
{[%clk 0:01:48]} 64... g2 {[%clk 0:22:45]} 65. Kd4 {[%clk 0:00:45]} 0-1

[Variant "Standard"]
[Site "Europe Echecs"]

[Event "Sunway Sitges Chess Festival"]
[Date "2024.12.22"]
[White "Lam, Chun Yung Samuel"]
[Black "Filgueiras, Nathan Felipe"]
[WhiteElo "2065"]
[BlackElo "2328"]
[Round "10.36"]
[Result "0-1"]
[TimeControl "40/5400+30:1800+30"]

1. e4 {[%clk 1:30:57]} 1... c5 {[%clk 1:30:56]} 2. Nf3 {[%clk 1:31:22]} 2... Nc6
{[%clk 1:31:23]} 3. d4 {[%clk 1:31:48]} 3... cxd4 {[%clk 1:31:49]} 4. Nxd4
{[%clk 1:32:14]} 4... e5 {[%clk 1:32:09]} 5. Nb5 {[%clk 1:32:31]} 5... d6 {[%clk
1:32:35]} 6. N1c3 {[%clk 1:32:53]} 6... a6 {[%clk 1:33:01]} 7. Na3 {[%clk
1:33:18]} 7... Be6 {[%clk 1:33:28]} 8. Nc4 {[%clk 1:32:33]} 8... Rb8 {[%clk
1:31:06]} 9. g3 {[%clk 1:32:11]} 9... h5 {[%clk 1:29:42]} 10. h3 {[%clk
1:30:38]} 10... g6 {[%clk 1:26:43]} 11. Ne3 {[%clk 1:28:03]} 11... Bh6 {[%clk
1:22:50]} 12. Bg2 {[%clk 1:27:40]} 12... h4 {[%clk 1:21:18]} 13. g4 {[%clk
1:27:15]} 13... Rc8 {[%clk 1:09:45]} 14. O-O {[%clk 1:23:40]} 14... Nf6 {[%clk
0:59:50]} 15. Ncd5 {[%clk 0:47:52]} 15... Bxd5 {[%clk 1:00:47]} 16. Nxd5 {[%clk
0:47:18]} 16... Bxc1 {[%clk 0:56:48]} 17. Rxc1 {[%clk 0:47:44]} 17... Nxd5
{[%clk 0:49:42]} 18. exd5 {[%clk 0:48:07]} 18... Nb8 {[%clk 0:50:02]} 19. f4
{[%clk 0:42:13]} 19... Nd7 {[%clk 0:48:17]} 20. c4 {[%clk 0:27:19]} 20... O-O
{[%clk 0:45:26]} 21. f5 {[%clk 0:25:48]} 21... Qg5 {[%clk 0:43:41]} 22. Rc3
{[%clk 0:27:46]} 22... Rce8 {[%clk 0:39:50]} 23. Qc1 {[%clk 0:26:03]} 23... Qxc1
{[%clk 0:37:20]} 24. Rcxc1 {[%clk 0:23:23]} 24... a5 {[%clk 0:35:02]} 25. Be4
{[%clk 0:18:50]} 25... Nc5 {[%clk 0:33:25]} 26. Rfe1 {[%clk 0:22:18]} 26... Kg7
{[%clk 0:33:01]} 27. Kf2 {[%clk 0:21:11]} 27... Rb8 {[%clk 0:30:30]} 28. Ke3
{[%clk 0:18:15]} 28... b5 {[%clk 0:30:19]} 29. b3 {[%clk 0:18:21]} 29... bxc4
{[%clk 0:25:00]} 30. Rxc4 {[%clk 0:18:46]} 30... Rb5 {[%clk 0:25:02]} 31. g5
{[%clk 0:17:30]} 31... Nxe4 {[%clk 0:13:02]} 32. Kxe4 {[%clk 0:17:55]} 32...
gxf5+ {[%clk 0:13:28]} 33. Kxf5 {[%clk 0:18:19]} 33... Rxd5 {[%clk 0:13:27]} 34.
Ree4 {[%clk 0:14:09]} 34... Rd2 {[%clk 0:10:58]} 35. Rxh4 {[%clk 0:13:29]} 35...
Rf2+ {[%clk 0:10:53]} 36. Ke4 {[%clk 0:13:31]} 36... Rxa2 {[%clk 0:10:18]} 37.
Rc6 {[%clk 0:11:30]} 37... Rb8 {[%clk 0:09:47]} 38. Rh6 {[%clk 0:10:39]} 38...
Rb4+ {[%clk 0:09:15]} 39. Rc4 {[%clk 0:08:03]} 39... Rxc4+ {[%clk 0:01:58]} 40.
bxc4 {[%clk 0:41:32]} 40... Rd2 {[%clk 0:32:23]} 41. c5 {[%clk 0:39:34]} 41...
Rd4+ {[%clk 0:31:45]} 42. Ke3 {[%clk 0:39:55]} 42... dxc5 {[%clk 0:22:19]} 43.
Rc6 {[%clk 0:24:55]} 43... c4 {[%clk 0:25:24]} 44. Rc5 {[%clk 0:24:32]} 44... a4
{[%clk 0:24:45]} 45. Rxe5 {[%clk 0:24:46]} 45... Rd3+ {[%clk 0:25:11]} 46. Ke2
{[%clk 0:25:00]} 46... Rxh3 {[%clk 0:07:06]} 47. Rc5 {[%clk 0:02:02]} 47... a3
{[%clk 0:23:56]} 48. Rxc4 {[%clk 0:02:21]} 48... Rh1 {[%clk 0:23:40]} 0-1

[Variant "Standard"]
[Site "Europe Echecs"]

[Event "Sunway Sitges Chess Festival"]
[Date "2024.12.22"]
[White "Schippke, Manon"]
[Black "Koridze, Lile"]
[WhiteElo "2213"]
[BlackElo "2107"]
[Round "10.39"]
[Result "1/2-1/2"]
[TimeControl "40/5400+30:1800+30"]

1. d4 {[%clk 1:21:45]} 1... Nf6 {[%clk 1:30:45]} 2. c4 {[%clk 1:22:10]} 2... e6
{[%clk 1:31:12]} 3. Nc3 {[%clk 1:22:36]} 3... Bb4 {[%clk 1:31:33]} 4. a3 {[%clk
1:23:00]} 4... Bxc3+ {[%clk 1:31:35]} 5. bxc3 {[%clk 1:23:25]} 5... b6 {[%clk
1:30:27]} 6. f3 {[%clk 1:23:41]} 6... d5 {[%clk 1:30:06]} 7. cxd5 {[%clk
1:22:52]} 7... exd5 {[%clk 1:28:43]} 8. e3 {[%clk 1:23:13]} 8... O-O {[%clk
1:26:32]} 9. Bd3 {[%clk 1:23:18]} 9... c5 {[%clk 1:23:27]} 10. Ne2 {[%clk
1:23:28]} 10... Nc6 {[%clk 1:14:13]} 11. O-O {[%clk 1:23:29]} 11... Re8 {[%clk
1:10:34]} 12. Ng3 {[%clk 1:21:51]} 12... Be6 {[%clk 1:06:19]} 13. a4 {[%clk
1:13:10]} 13... Qc7 {[%clk 0:53:09]} 14. Ba3 {[%clk 1:08:51]} 14... Na5 {[%clk
0:47:50]} 15. e4 {[%clk 1:03:15]} 15... cxd4 {[%clk 0:20:30]} 16. cxd4 {[%clk
1:03:38]} 16... dxe4 {[%clk 0:20:51]} 17. fxe4 {[%clk 1:03:27]} 17... Ng4 {[%clk
0:16:04]} 18. d5 {[%clk 0:51:51]} 18... Bd7 {[%clk 0:10:51]} 19. Bb2 {[%clk
0:37:07]} 19... Qc5+ {[%clk 0:10:32]} 20. Kh1 {[%clk 0:37:34]} 20... Nf2+ {[%clk
0:09:41]} 21. Rxf2 {[%clk 0:38:00]} 21... Qxf2 {[%clk 0:10:07]} 22. Rb1 {[%clk
0:37:07]} 22... Rac8 {[%clk 0:08:58]} 23. e5 {[%clk 0:33:23]} 23... Qe3 {[%clk
0:01:35]} 24. Bd4 {[%clk 0:32:16]} 24... Qh6 {[%clk 0:01:39]} 25. Ne4 {[%clk
0:28:49]} 25... Bf5 {[%clk 0:01:14]} 26. Nf6+ {[%clk 0:28:08]} 26... gxf6 {[%clk
0:01:39]} 27. Bxf5 {[%clk 0:28:36]} 27... Rcd8 {[%clk 0:01:03]} 28. exf6 {[%clk
0:21:01]} 28... Rxd5 {[%clk 0:00:58]} 29. Qg4+ {[%clk 0:21:27]} 29... Kh8 {[%clk
0:01:20]} 30. h3 {[%clk 0:21:24]} 30... Rg8 {[%clk 0:00:47]} 31. Qe4 {[%clk
0:21:49]} 31... Rd6 {[%clk 0:00:41]} 32. Be5 {[%clk 0:20:26]} 32... Re8 {[%clk
0:00:39]} 33. Re1 {[%clk 0:19:03]} 33... Rdd8 {[%clk 0:00:33]} 34. Kh2 {[%clk
0:16:34]} 34... Qg5 {[%clk 0:00:34]} 35. Re3 {[%clk 0:16:05]} 35... Qh6 {[%clk
0:00:34]} 36. Rg3 {[%clk 0:14:35]} 36... Nc4 {[%clk 0:00:54]} 37. Bf4 {[%clk
0:07:59]} 37... Qxf6 {[%clk 0:01:06]} 38. Qxc4 {[%clk 0:07:59]} 38... Qxf5
{[%clk 0:01:16]} 39. Bg5 {[%clk 0:06:30]} 39... f6 {[%clk 0:01:09]} 40. Qf7
{[%clk 0:36:26]} 40... Qxg5 {[%clk 0:31:08]} 41. Rxg5 {[%clk 0:36:52]} 41...
fxg5 {[%clk 0:31:02]} 42. Qxa7 {[%clk 0:36:03]} 42... Re6 {[%clk 0:31:20]}
1/2-1/2

[Variant "Standard"]
[Site "Europe Echecs"]

[Event "Sunway Sitges Chess Festival"]
[Date "2024.12.22"]
[White "Bous, Florian"]
[Black "Schulman, Julia"]
[WhiteElo "1995"]
[BlackElo "1852"]
[Round "10.40"]
[Result "0-1"]
[TimeControl "40/5400+30:1800+30"]

1. d4 {[%clk 1:30:53]} 1... Nf6 {[%clk 1:30:53]} 2. c4 {[%clk 1:31:12]} 2... e6
{[%clk 1:31:15]} 3. Nf3 {[%clk 1:31:32]} 3... a6 {[%clk 1:31:08]} 4. Bg5 {[%clk
1:29:14]} 4... d5 {[%clk 1:29:28]} 5. Nc3 {[%clk 1:29:12]} 5... Be7 {[%clk
1:27:49]} 6. e3 {[%clk 1:28:01]} 6... O-O {[%clk 1:17:29]} 7. Qc2 {[%clk
1:25:21]} 7... h6 {[%clk 1:26:06]} 8. Bh4 {[%clk 1:19:27]} 8... dxc4 {[%clk
1:20:34]} 9. Bxc4 {[%clk 1:17:31]} 9... b5 {[%clk 1:18:16]} 10. Bd3 {[%clk
1:12:43]} 10... Bb7 {[%clk 1:13:26]} 11. O-O {[%clk 0:57:34]} 11... Nbd7 {[%clk
1:07:00]} 12. a4 {[%clk 1:12:55]} 12... b4 {[%clk 1:02:19]} 13. Ne4 {[%clk
1:07:50]} 13... a5 {[%clk 1:01:51]} 14. Rac1 {[%clk 1:02:32]} 14... Rc8 {[%clk
0:49:11]} 15. Bxf6 {[%clk 0:52:54]} 15... Bxf6 {[%clk 0:47:36]} 16. Nfd2 {[%clk
0:50:00]} 16... Be7 {[%clk 0:41:37]} 17. Nc5 {[%clk 0:44:29]} 17... Nxc5 {[%clk
0:40:30]} 18. dxc5 {[%clk 0:50:50]} 18... Bxc5 {[%clk 0:37:40]} 19. Rfd1 {[%clk
0:49:28]} 19... Bd6 {[%clk 0:35:59]} 20. Nc4 {[%clk 0:44:47]} 20... Qg5 {[%clk
0:33:06]} 21. Bh7+ {[%clk 0:45:37]} 21... Kh8 {[%clk 0:33:30]} 22. Be4 {[%clk
0:43:38]} 22... Bxh2+ {[%clk 0:28:07]} 23. Kf1 {[%clk 0:40:03]} 23... Bxe4
{[%clk 0:28:45]} 24. Qxe4 {[%clk 0:34:44]} 24... Bd6 {[%clk 0:28:05]} 25. f4
{[%clk 0:33:51]} 25... Qh5 {[%clk 0:27:59]} 26. Kf2 {[%clk 0:27:49]} 26... Qh4+
{[%clk 0:26:17]} 27. Kf3 {[%clk 0:32:51]} 27... f5 {[%clk 0:20:55]} 28. Qxe6
{[%clk 0:30:07]} 28... Qg4+ {[%clk 0:20:22]} 29. Kf2 {[%clk 0:29:30]} 29... Rce8
{[%clk 0:18:52]} 30. Qd5 {[%clk 0:29:59]} 30... Rf6 {[%clk 0:15:26]} 31. g3
{[%clk 0:23:45]} 31... Rg6 {[%clk 0:13:41]} 32. Qf3 {[%clk 0:22:29]} 32... Qxf3+
{[%clk 0:13:05]} 33. Kxf3 {[%clk 0:19:24]} 33... Rge6 {[%clk 0:12:26]} 34. Rd5
{[%clk 0:16:57]} 34... g6 {[%clk 0:08:35]} 35. Rxa5 {[%clk 0:14:50]} 35... R8e7
{[%clk 0:06:04]} 36. Rd1 {[%clk 0:13:27]} 36... Re4 {[%clk 0:05:27]} 37. b3
{[%clk 0:11:40]} 37... Re8 {[%clk 0:04:31]} 38. Rd3 {[%clk 0:25:27]} 38... Kg8
{[%clk 0:03:07]} 39. Ra6 {[%clk 0:54:09]} 39... g5 {[%clk 0:01:53]} 40. Nxd6
{[%clk 0:52:03]} 40... cxd6 {[%clk 0:32:01]} 41. Raxd6 {[%clk 0:51:19]} 41...
g4+ {[%clk 0:30:42]} 42. Ke2 {[%clk 0:46:11]} 42... Kg7 {[%clk 0:25:28]} 43.
R6d4 {[%clk 0:51:18]} 43... Rxd4 {[%clk 0:26:16]} 44. Rxd4 {[%clk 0:50:54]}
44... Rb8 {[%clk 0:26:16]} 45. Kd3 {[%clk 0:49:42]} 45... h5 {[%clk 0:25:58]}
46. e4 {[%clk 0:49:56]} 46... fxe4+ {[%clk 0:24:35]} 47. Kxe4 {[%clk 0:48:15]}
47... Re8+ {[%clk 0:24:02]} 48. Kf5 {[%clk 0:44:50]} 48... Re3 {[%clk 0:23:04]}
49. Rxb4 {[%clk 0:48:16]} 49... Rxg3 {[%clk 0:20:51]} 50. Rb7+ {[%clk 0:46:15]}
50... Kh6 {[%clk 0:22:13]} 51. Rb6+ {[%clk 0:46:07]} 51... Kg7 {[%clk 0:24:45]}
52. a5 {[%clk 0:42:29]} 52... Rd3 {[%clk 0:23:33]} 53. a6 {[%clk 0:44:51]} 53...
g3 {[%clk 0:14:39]} 54. Rg6+ {[%clk 0:28:57]} 54... Kf7 {[%clk 0:13:00]} 55. Kg5
{[%clk 0:23:18]} 55... g2 {[%clk 0:10:16]} 56. Kh6 {[%clk 0:20:30]} 56... Rd6
{[%clk 0:08:42]} 57. Rxd6 {[%clk 0:20:26]} 57... g1=Q {[%clk 0:07:31]} 58. Rd7+
{[%clk 0:17:05]} 58... Kf6 {[%clk 0:06:10]} 59. Kh7 {[%clk 0:16:40]} 59... Qg6+
{[%clk 0:06:03]} 60. Kh8 {[%clk 0:16:20]} 60... Qe8+ {[%clk 0:05:38]} 0-1

[Variant "Standard"]
[Site "Europe Echecs"]